[Event "Late-Titled-Tuesday-Blitz-January-16-2024"]
[Site "Chess.com"]
[Date "2024.01.16"]
[Round "2"]
[White "Hrant_ChessMood"]
[Black "AmanteDeMoi"]
[Result "1-0"]
[WhiteElo "2895"]
[BlackElo "2562"]
[TimeControl "180+1"]
[EndTime "14:18:47 PST"]
[Termination "Hrant_ChessMood won on time"]

1. d4 {[%clk 0:02:58]} 1... g6 {[%clk 0:02:59.2]} 2. e4 {[%clk 0:02:57.1]} 2...
Bg7 {[%clk 0:02:59.2]} 3. Nf3 {[%clk 0:02:57.9]} 3... c6 {[%clk 0:02:59.4]} 4.
Nc3 {[%clk 0:02:56.7]} 4... d5 {[%clk 0:02:59.5]} 5. h3 {[%clk 0:02:55.7]} 5...
dxe4 {[%clk 0:02:59.6]} 6. Nxe4 {[%clk 0:02:54.9]} 6... Nd7 {[%clk 0:02:59.9]}
7. Bd3 {[%clk 0:02:55.2]} 7... Ngf6 {[%clk 0:02:59.9]} 8. Qe2 {[%clk 0:02:52]}
8... O-O {[%clk 0:02:59.6]} 9. O-O {[%clk 0:02:50.2]} 9... Nxe4 {[%clk
0:02:52.2]} 10. Qxe4 {[%clk 0:02:50.1]} 10... c5 {[%clk 0:02:47.3]} 11. Re1
{[%clk 0:02:42.6]} 11... cxd4 {[%clk 0:02:26.7]} 12. Bg5 {[%clk 0:02:41.9]}
12... Nc5 {[%clk 0:02:05]} 13. Qxe7 {[%clk 0:02:36.1]} 13... Qxe7 {[%clk
0:01:48.1]} 14. Bxe7 {[%clk 0:02:37]} 14... Nxd3 {[%clk 0:01:48.1]} 15. cxd3
{[%clk 0:02:31.4]} 15... Re8 {[%clk 0:01:46.9]} 16. Bc5 {[%clk 0:02:30.9]} 16...
Bf5 {[%clk 0:01:42.1]} 17. Bxd4 {[%clk 0:02:29.6]} 17... Bxd3 {[%clk 0:01:33.1]}
18. Bxg7 {[%clk 0:02:29.3]} 18... Kxg7 {[%clk 0:01:33.1]} 19. Ne5 {[%clk
0:02:30.2]} 19... Bf5 {[%clk 0:01:21.5]} 20. g4 {[%clk 0:02:19.6]} 20... Be6
{[%clk 0:01:19.7]} 21. a3 {[%clk 0:02:14.3]} 21... Rac8 {[%clk 0:01:19.3]} 22.
Rac1 {[%clk 0:02:08]} 22... Rxc1 {[%clk 0:01:18.3]} 23. Rxc1 {[%clk 0:02:07.9]}
23... Bd5 {[%clk 0:01:18]} 24. Nd3 {[%clk 0:02:07.7]} 24... Re7 {[%clk
0:01:15.7]} 25. Kh2 {[%clk 0:01:45.9]} 25... b6 {[%clk 0:01:15.3]} 26. Kg3
{[%clk 0:01:44.4]} 26... Bb7 {[%clk 0:01:13.6]} 27. Nf4 {[%clk 0:01:40.4]} 27...
h6 {[%clk 0:01:01.7]} 28. h4 {[%clk 0:01:40.5]} 28... Rd7 {[%clk 0:00:58.3]} 29.
g5 {[%clk 0:01:39.1]} 29... hxg5 {[%clk 0:00:58.1]} 30. hxg5 {[%clk 0:01:40]}
30... Re7 {[%clk 0:00:58]} 31. Kg4 {[%clk 0:00:54.4]} 31... a5 {[%clk
0:00:45.1]} 32. Rc4 {[%clk 0:00:50]} 32... Rd7 {[%clk 0:00:41]} 33. b4 {[%clk
0:00:49.1]} 33... axb4 {[%clk 0:00:31.5]} 34. Rxb4 {[%clk 0:00:50]} 34... Rd6
{[%clk 0:00:31.3]} 35. Rc4 {[%clk 0:00:50.2]} 35... Rc6 {[%clk 0:00:28.7]} 36.
Rxc6 {[%clk 0:00:47.4]} 36... Bxc6 {[%clk 0:00:29]} 37. Ne2 {[%clk 0:00:48.3]}
37... Kf8 {[%clk 0:00:25.1]} 38. Kf4 {[%clk 0:00:48]} 38... Ke7 {[%clk
0:00:19.9]} 39. Ke5 {[%clk 0:00:48.2]} 39... Bb7 {[%clk 0:00:19.3]} 40. Nf4
{[%clk 0:00:48.4]} 40... Bc6 {[%clk 0:00:19.3]} 41. Nd3 {[%clk 0:00:47.6]} 41...
Bb7 {[%clk 0:00:18.4]} 42. Nb2 {[%clk 0:00:48]} 42... Bc6 {[%clk 0:00:15.2]} 43.
Nc4 {[%clk 0:00:48.4]} 43... b5 {[%clk 0:00:15.6]} 44. Nd6 {[%clk 0:00:48.2]}
44... Bd7 {[%clk 0:00:13.6]} 45. Ne4 {[%clk 0:00:47.2]} 45... Bc6 {[%clk
0:00:13.5]} 46. Nc3 {[%clk 0:00:47.5]} 46... Kd7 {[%clk 0:00:01.9]} 47. Kf6
{[%clk 0:00:47.6]} 47... Ke8 {[%clk 0:00:02]} 48. f4 {[%clk 0:00:48.1]} 48...
Kf8 {[%clk 0:00:02.2]} 49. Ne2 {[%clk 0:00:48.7]} 49... Be8 {[%clk 0:00:02.3]}
50. Nd4 {[%clk 0:00:49.6]} 50... Bd7 {[%clk 0:00:02.3]} 51. Nf3 {[%clk 0:00:49]}
51... Be8 {[%clk 0:00:02.6]} 52. Ne5 {[%clk 0:00:49.9]} 52... Kg8 {[%clk
0:00:03.1]} 53. Ke7 {[%clk 0:00:49.4]} 53... b4 {[%clk 0:00:02.1]} 54. axb4
{[%clk 0:00:46.1]} 54... Bb5 {[%clk 0:00:02.2]} 55. Nd7 {[%clk 0:00:45.3]} 55...
Kg7 {[%clk 0:00:02.1]} 56. Nf6 {[%clk 0:00:44.8]} 56... Kh8 {[%clk 0:00:02.2]}
57. Kxf7 {[%clk 0:00:43.4]} 57... Bd3 {[%clk 0:00:02.2]} 58. Ke7 {[%clk
0:00:40.5]} 58... Kg7 {[%clk 0:00:01.9]} 59. Nd5 {[%clk 0:00:39.5]} 59... Be4
{[%clk 0:00:01.9]} 60. Nc7 {[%clk 0:00:39]} 1-0

[Event "Late-Titled-Tuesday-Blitz-January-16-2024"]
[Site "Chess.com"]
[Date "2024.01.16"]
[Round "2"]
[White "Aguiar94"]
[Black "DavidGavrilescu18"]
[Result "0-1"]
[WhiteElo "2528"]
[BlackElo "2770"]
[TimeControl "180+1"]
[EndTime "14:18:59 PST"]
[Termination "DavidGavrilescu18 won by resignation"]

1. e4 {[%clk 0:03:00.9]} 1... c5 {[%clk 0:02:58.5]} 2. Nf3 {[%clk 0:03:00.5]}
2... a6 {[%clk 0:02:59]} 3. c3 {[%clk 0:03:00.1]} 3... e6 {[%clk 0:02:59]} 4. d4
{[%clk 0:02:59.8]} 4... d5 {[%clk 0:02:59.6]} 5. e5 {[%clk 0:02:59.8]} 5... Bd7
{[%clk 0:02:59.5]} 6. Be3 {[%clk 0:02:48.4]} 6... cxd4 {[%clk 0:02:58.9]} 7.
cxd4 {[%clk 0:02:49.3]} 7... Bb5 {[%clk 0:02:58.5]} 8. Nc3 {[%clk 0:02:49.1]}
8... Bxf1 {[%clk 0:02:58.4]} 9. Kxf1 {[%clk 0:02:50]} 9... Nc6 {[%clk
0:02:58.9]} 10. h3 {[%clk 0:02:28.8]} 10... Nge7 {[%clk 0:02:56.2]} 11. g4
{[%clk 0:02:27.9]} 11... Ng6 {[%clk 0:02:55.5]} 12. Kg2 {[%clk 0:02:24.5]} 12...
Be7 {[%clk 0:02:54.8]} 13. g5 {[%clk 0:02:16.1]} 13... h6 {[%clk 0:02:39.9]} 14.
h4 {[%clk 0:02:14.3]} 14... hxg5 {[%clk 0:02:39.7]} 15. hxg5 {[%clk 0:02:14]}
15... Rxh1 {[%clk 0:02:39]} 16. Qxh1 {[%clk 0:02:14.9]} 16... Kd7 {[%clk
0:02:38.7]} 17. Qh3 {[%clk 0:02:11.9]} 17... Rc8 {[%clk 0:02:36.4]} 18. Nxd5
{[%clk 0:02:10.1]} 18... Qa5 {[%clk 0:02:28.3]} 19. Nc3 {[%clk 0:02:05.6]} 19...
Nb4 {[%clk 0:02:25.8]} 20. d5 {[%clk 0:02:02.3]} 20... Nxd5 {[%clk 0:02:24.8]}
21. Rd1 {[%clk 0:02:00.9]} 21... Rxc3 {[%clk 0:01:56.8]} 22. bxc3 {[%clk
0:01:59.1]} 22... Kc7 {[%clk 0:01:57]} 23. Qg4 {[%clk 0:01:49.7]} 23... Qxa2
{[%clk 0:01:53.8]} 24. Bd4 {[%clk 0:01:38.3]} 24... Ngf4+ {[%clk 0:01:47.6]} 25.
Kh1 {[%clk 0:01:30.9]} 25... Qc2 {[%clk 0:01:40.8]} 26. Re1 {[%clk 0:01:27.8]}
26... Nd3 {[%clk 0:01:35.7]} 27. Rf1 {[%clk 0:01:24.4]} 27... Qe2 {[%clk
0:01:24.2]} 28. Kg1 {[%clk 0:01:21.5]} 28... N5f4 {[%clk 0:01:21.3]} 29. c4
{[%clk 0:01:15.9]} 29... Qe4 {[%clk 0:01:04.9]} 30. Kh2 {[%clk 0:01:00.4]} 30...
Bb4 {[%clk 0:00:52.9]} 31. Be3 {[%clk 0:00:55]} 31... Bc3 {[%clk 0:00:51.7]} 32.
Kg3 {[%clk 0:00:41.1]} 32... Ne2+ {[%clk 0:00:46.3]} 33. Kh4 {[%clk 0:00:40.8]}
33... Ndf4 {[%clk 0:00:40.5]} 34. Bxf4 {[%clk 0:00:36.5]} 34... Nxf4 {[%clk
0:00:41.4]} 35. Rd1 {[%clk 0:00:26.5]} 35... Bxe5 {[%clk 0:00:34.1]} 36. Nxe5
{[%clk 0:00:26.1]} 36... Qxe5 {[%clk 0:00:35]} 37. Kg3 {[%clk 0:00:21.6]} 37...
Nd3+ {[%clk 0:00:18.4]} 38. Kg2 {[%clk 0:00:18.3]} 38... Nc5 {[%clk 0:00:18.4]}
39. Rd2 {[%clk 0:00:15.8]} 39... a5 {[%clk 0:00:17.5]} 40. Re2 {[%clk
0:00:15.9]} 40... Qd6 {[%clk 0:00:16.4]} 41. Qf3 {[%clk 0:00:16]} 41... Qe7
{[%clk 0:00:15.3]} 42. Qe3 {[%clk 0:00:14.9]} 42... b6 {[%clk 0:00:14.9]} 43.
Qe5+ {[%clk 0:00:15.3]} 43... Kb7 {[%clk 0:00:14.6]} 44. Rd2 {[%clk 0:00:15.6]}
44... f6 {[%clk 0:00:14.4]} 45. gxf6 {[%clk 0:00:15.3]} 45... gxf6 {[%clk
0:00:15.3]} 46. Qd6 {[%clk 0:00:15.6]} 46... Qg7+ {[%clk 0:00:15.4]} 47. Kf1
{[%clk 0:00:15.7]} 47... Qg4 {[%clk 0:00:14.8]} 48. Qe7+ {[%clk 0:00:15.2]}
48... Ka6 {[%clk 0:00:15.3]} 49. Qxf6 {[%clk 0:00:14]} 49... Qxc4+ {[%clk
0:00:15.5]} 50. Kg1 {[%clk 0:00:14]} 50... a4 {[%clk 0:00:16.3]} 51. Qb2 {[%clk
0:00:11.8]} 51... e5 {[%clk 0:00:14.5]} 52. Re2 {[%clk 0:00:11.2]} 52... e4
{[%clk 0:00:13.5]} 53. Re3 {[%clk 0:00:11.9]} 53... Nd3 {[%clk 0:00:13]} 54. Qa3
{[%clk 0:00:11]} 54... b5 {[%clk 0:00:12.7]} 55. Qd6+ {[%clk 0:00:10.7]} 55...
Ka5 {[%clk 0:00:13.3]} 56. Qd8+ {[%clk 0:00:11.3]} 56... Kb4 {[%clk 0:00:13.7]}
57. Qe7+ {[%clk 0:00:11.6]} 57... Kb3 {[%clk 0:00:14.2]} 58. Rxe4 {[%clk
0:00:11.8]} 58... Qc1+ {[%clk 0:00:14.4]} 59. Kg2 {[%clk 0:00:12.4]} 59... a3
{[%clk 0:00:13.2]} 60. Qe6+ {[%clk 0:00:13]} 60... Kb2 {[%clk 0:00:13]} 61. Re3
{[%clk 0:00:13.6]} 61... Nf4+ {[%clk 0:00:11.6]} 62. Kf3 {[%clk 0:00:12.4]}
62... Nxe6 {[%clk 0:00:12.5]} 63. Rxe6 {[%clk 0:00:11.9]} 63... a2 {[%clk
0:00:12.6]} 64. Re2+ {[%clk 0:00:12.3]} 64... Qc2 {[%clk 0:00:13]} 65. Rxc2+
{[%clk 0:00:12]} 65... Kxc2 {[%clk 0:00:13.9]} 0-1

[Event "Late-Titled-Tuesday-Blitz-January-16-2024"]
[Site "Chess.com"]
[Date "2024.01.16"]
[Round "2"]
[White "KamilGrycel"]
[Black "RamyresCoelho"]
[Result "1/2-1/2"]
[WhiteElo "2507"]
[BlackElo "2259"]
[TimeControl "180+1"]
[EndTime "14:18:59 PST"]
[Termination "Game drawn - insufficient material"]

1. d4 {[%clk 0:03:00]} 1... Nf6 {[%clk 0:02:59.9]} 2. Nf3 {[%clk 0:03:00]} 2...
g6 {[%clk 0:02:59.7]} 3. Bf4 {[%clk 0:03:00.1]} 3... Nh5 {[%clk 0:02:59.5]} 4.
Be5 {[%clk 0:02:56.8]} 4... Bg7 {[%clk 0:02:58.3]} 5. Bxg7 {[%clk 0:02:52.2]}
5... Nxg7 {[%clk 0:02:59.2]} 6. e4 {[%clk 0:02:51.7]} 6... O-O {[%clk
0:02:48.6]} 7. Nbd2 {[%clk 0:02:49.6]} 7... c5 {[%clk 0:02:46.4]} 8. c3 {[%clk
0:02:49.1]} 8... cxd4 {[%clk 0:02:46.2]} 9. cxd4 {[%clk 0:02:48.7]} 9... b6
{[%clk 0:02:47.1]} 10. Rc1 {[%clk 0:02:39.7]} 10... Bb7 {[%clk 0:02:46.8]} 11.
Bd3 {[%clk 0:02:37.4]} 11... d6 {[%clk 0:02:46.6]} 12. O-O {[%clk 0:02:37]}
12... Nd7 {[%clk 0:02:47]} 13. Qe2 {[%clk 0:02:35.6]} 13... Rc8 {[%clk
0:02:47.2]} 14. Ba6 {[%clk 0:02:32.5]} 14... Rxc1 {[%clk 0:02:42.4]} 15. Rxc1
{[%clk 0:02:32.2]} 15... Qb8 {[%clk 0:02:36.9]} 16. Bxb7 {[%clk 0:02:27.5]}
16... Qxb7 {[%clk 0:02:37.8]} 17. Qc4 {[%clk 0:02:26.7]} 17... Rb8 {[%clk
0:02:25.2]} 18. Qc7 {[%clk 0:02:20.3]} 18... Ne8 {[%clk 0:02:01.2]} 19. Qxb7
{[%clk 0:01:39.4]} 19... Rxb7 {[%clk 0:02:02.1]} 20. Rc8 {[%clk 0:01:39.8]}
20... Rb8 {[%clk 0:02:02.2]} 21. Rc3 {[%clk 0:01:38.2]} 21... Rb7 {[%clk
0:01:54.4]} 22. b4 {[%clk 0:01:37.5]} 22... Rc7 {[%clk 0:01:54.2]} 23. Rxc7
{[%clk 0:01:32]} 23... Nxc7 {[%clk 0:01:55.1]} 24. Kf1 {[%clk 0:01:31.8]} 24...
f6 {[%clk 0:01:54.6]} 25. Ke1 {[%clk 0:01:31.9]} 25... Kf7 {[%clk 0:01:55]} 26.
Ke2 {[%clk 0:01:32.2]} 26... e5 {[%clk 0:01:55.2]} 27. d5 {[%clk 0:01:30]} 27...
h6 {[%clk 0:01:51.6]} 28. Kd3 {[%clk 0:01:26.6]} 28... f5 {[%clk 0:01:50.5]} 29.
a3 {[%clk 0:01:13.9]} 29... fxe4+ {[%clk 0:01:48.8]} 30. Nxe4 {[%clk 0:01:14.8]}
30... Nxd5 {[%clk 0:01:31.2]} 31. Nxd6+ {[%clk 0:01:14.6]} 31... Ke6 {[%clk
0:01:31.7]} 32. Nb5 {[%clk 0:01:12.5]} 32... N7f6 {[%clk 0:01:26.2]} 33. Nd2
{[%clk 0:01:10]} 33... a6 {[%clk 0:01:22.4]} 34. Nc3 {[%clk 0:01:02.1]} 34...
Nf4+ {[%clk 0:01:22.4]} 35. Kc4 {[%clk 0:01:02]} 35... Nxg2 {[%clk 0:01:23.3]}
36. a4 {[%clk 0:01:01.4]} 36... Ng4 {[%clk 0:01:19.3]} 37. Nde4 {[%clk
0:00:56.3]} 37... Nxh2 {[%clk 0:01:16.6]} 38. a5 {[%clk 0:00:56.3]} 38... bxa5
{[%clk 0:01:14.2]} 39. bxa5 {[%clk 0:00:57.2]} 39... Nf3 {[%clk 0:01:03.8]} 40.
Nc5+ {[%clk 0:00:56.8]} 40... Kf5 {[%clk 0:01:02.9]} 41. Nxa6 {[%clk 0:00:56.5]}
41... h5 {[%clk 0:00:50.1]} 42. Nb4 {[%clk 0:00:56]} 42... e4 {[%clk 0:00:43.5]}
43. Kd5 {[%clk 0:00:50]} 43... Nf4+ {[%clk 0:00:42.6]} 44. Kc6 {[%clk
0:00:49.6]} 44... Ne5+ {[%clk 0:00:42.4]} 45. Kc7 {[%clk 0:00:46.7]} 45... Ne6+
{[%clk 0:00:40.6]} 46. Kb8 {[%clk 0:00:46]} 46... Nc5 {[%clk 0:00:40.1]} 47.
Ncd5 {[%clk 0:00:42.3]} 47... h4 {[%clk 0:00:35]} 48. Ne3+ {[%clk 0:00:41.2]}
48... Kf4 {[%clk 0:00:33.6]} 49. Nbd5+ {[%clk 0:00:40.5]} 49... Kf3 {[%clk
0:00:33.6]} 50. Nf1 {[%clk 0:00:35]} 50... Nc6+ {[%clk 0:00:33.6]} 51. Kc7
{[%clk 0:00:34.8]} 51... Nxa5 {[%clk 0:00:34.5]} 52. Kb6 {[%clk 0:00:33.9]}
52... Nab3 {[%clk 0:00:34.8]} 53. Nc3 {[%clk 0:00:32.6]} 53... Nd3 {[%clk
0:00:32.4]} 54. Nh2+ {[%clk 0:00:32.6]} 54... Kxf2 {[%clk 0:00:32.2]} 55. Nxe4+
{[%clk 0:00:32.7]} 55... Kg2 {[%clk 0:00:31.1]} 56. Ng4 {[%clk 0:00:32.1]} 56...
h3 {[%clk 0:00:28.5]} 57. Ng5 {[%clk 0:00:27.3]} 57... h2 {[%clk 0:00:24.5]} 58.
Nxh2 {[%clk 0:00:27.2]} 58... Kxh2 {[%clk 0:00:25.4]} 59. Kc7 {[%clk 0:00:27.6]}
59... Kg3 {[%clk 0:00:24.6]} 60. Kd6 {[%clk 0:00:27.2]} 60... Kg4 {[%clk
0:00:24.9]} 61. Nh7 {[%clk 0:00:27.3]} 61... Nf4 {[%clk 0:00:22.4]} 62. Ke5
{[%clk 0:00:26.6]} 62... Nd2 {[%clk 0:00:20.4]} 63. Kf6 {[%clk 0:00:25.6]} 63...
Nf3 {[%clk 0:00:21.3]} 64. Nf8 {[%clk 0:00:24.6]} 64... g5 {[%clk 0:00:20.8]}
65. Nh7 {[%clk 0:00:24.5]} 65... Nh5+ {[%clk 0:00:20.1]} 66. Ke7 {[%clk
0:00:20.5]} 66... Nf4 {[%clk 0:00:17.1]} 67. Nxg5 {[%clk 0:00:20.6]} 67... Kxg5
{[%clk 0:00:18]} 1/2-1/2

[Event "Late-Titled-Tuesday-Blitz-January-16-2024"]
[Site "Chess.com"]
[Date "2024.01.16"]
[Round "2"]
[White "Karacsonyi_Gellert"]
[Black "pooh2012"]
[Result "1/2-1/2"]
[WhiteElo "2779"]
[BlackElo "2538"]
[TimeControl "180+1"]
[EndTime "14:19:00 PST"]
[Termination "Game drawn by repetition"]

1. e4 {[%clk 0:03:00.9]} 1... c6 {[%clk 0:02:58.5]} 2. d4 {[%clk 0:02:59.3]}
2... d5 {[%clk 0:02:57.7]} 3. exd5 {[%clk 0:03:00.2]} 3... cxd5 {[%clk
0:02:57.4]} 4. Bd3 {[%clk 0:03:00.9]} 4... Nc6 {[%clk 0:02:56.8]} 5. c3 {[%clk
0:03:01.3]} 5... Qc7 {[%clk 0:02:56.2]} 6. Ne2 {[%clk 0:03:01.2]} 6... Bg4
{[%clk 0:02:52.3]} 7. f3 {[%clk 0:03:01.7]} 7... Bd7 {[%clk 0:02:49.2]} 8. O-O
{[%clk 0:03:01.4]} 8... e6 {[%clk 0:02:48.4]} 9. Bf4 {[%clk 0:03:01.4]} 9... Bd6
{[%clk 0:02:47.7]} 10. Bxd6 {[%clk 0:03:02.1]} 10... Qxd6 {[%clk 0:02:48.1]} 11.
Nd2 {[%clk 0:03:03]} 11... Nge7 {[%clk 0:02:41.1]} 12. f4 {[%clk 0:03:01.9]}
12... O-O {[%clk 0:02:36.2]} 13. Nf3 {[%clk 0:03:02.5]} 13... f6 {[%clk
0:02:24.3]} 14. Qe1 {[%clk 0:03:00.6]} 14... Be8 {[%clk 0:02:19.4]} 15. Qg3
{[%clk 0:02:52.8]} 15... Bg6 {[%clk 0:02:17.8]} 16. Bb5 {[%clk 0:02:50.1]} 16...
a6 {[%clk 0:02:14.2]} 17. Bxc6 {[%clk 0:02:48.5]} 17... Nxc6 {[%clk 0:02:07]}
18. Rae1 {[%clk 0:02:47.3]} 18... Rae8 {[%clk 0:01:48.3]} 19. Nh4 {[%clk
0:02:40.9]} 19... Bh5 {[%clk 0:01:43.9]} 20. Nc1 {[%clk 0:02:35.4]} 20... Ne7
{[%clk 0:01:17.3]} 21. Nd3 {[%clk 0:02:33.7]} 21... b6 {[%clk 0:01:16.8]} 22.
Re3 {[%clk 0:02:09.6]} 22... Nf5 {[%clk 0:01:06.1]} 23. Nxf5 {[%clk 0:02:09.2]}
23... exf5 {[%clk 0:01:07]} 24. Rfe1 {[%clk 0:02:09.3]} 24... a5 {[%clk
0:00:50.1]} 25. Kf2 {[%clk 0:02:03.2]} 25... Re4 {[%clk 0:00:48.8]} 26. Qh3
{[%clk 0:01:50.2]} 26... Bg4 {[%clk 0:00:42.9]} 27. Qh4 {[%clk 0:01:49.7]} 27...
Rfe8 {[%clk 0:00:34.2]} 28. Rxe4 {[%clk 0:01:05.4]} 28... dxe4 {[%clk
0:00:32.4]} 29. h3 {[%clk 0:01:03.5]} 29... Re7 {[%clk 0:00:20.6]} 30. Ne5
{[%clk 0:00:48.7]} 30... fxe5 {[%clk 0:00:18.9]} 31. fxe5 {[%clk 0:00:49]} 31...
Qe6 {[%clk 0:00:12.7]} 32. hxg4 {[%clk 0:00:49.1]} 32... Rf7 {[%clk 0:00:09.2]}
33. gxf5 {[%clk 0:00:29.7]} 33... Rxf5+ {[%clk 0:00:06.6]} 34. Kg1 {[%clk
0:00:30.4]} 34... Qxa2 {[%clk 0:00:05.9]} 35. Qxe4 {[%clk 0:00:23.7]} 35... g6
{[%clk 0:00:06.1]} 36. Qe2 {[%clk 0:00:12.3]} 36... Qe6 {[%clk 0:00:05.1]} 37.
Rf1 {[%clk 0:00:12.7]} 37... Kf7 {[%clk 0:00:04.2]} 38. Rxf5+ {[%clk 0:00:12.3]}
38... Qxf5 {[%clk 0:00:04.8]} 39. d5 {[%clk 0:00:12.8]} 39... Ke7 {[%clk
0:00:04.8]} 40. e6 {[%clk 0:00:11.7]} 40... Qxd5 {[%clk 0:00:03.7]} 41. Qa6
{[%clk 0:00:06]} 41... Qxe6 {[%clk 0:00:03.3]} 42. Qa7+ {[%clk 0:00:06.4]} 42...
Kf6 {[%clk 0:00:03.5]} 43. Qxh7 {[%clk 0:00:06.9]} 43... Qe1+ {[%clk 0:00:03.7]}
44. Kh2 {[%clk 0:00:07.5]} 44... Qe5+ {[%clk 0:00:04.1]} 45. Kg1 {[%clk
0:00:07.6]} 45... Qe1+ {[%clk 0:00:04.3]} 46. Kh2 {[%clk 0:00:08.4]} 46... Qe5+
{[%clk 0:00:04.6]} 47. Kh3 {[%clk 0:00:09.1]} 47... Qf5+ {[%clk 0:00:02.6]} 48.
Kg3 {[%clk 0:00:07.8]} 48... Qe5+ {[%clk 0:00:03]} 49. Kf2 {[%clk 0:00:08.4]}
49... Qf4+ {[%clk 0:00:03.5]} 50. Kg1 {[%clk 0:00:05.9]} 50... Qc1+ {[%clk
0:00:03.4]} 51. Kh2 {[%clk 0:00:06.6]} 51... Qxb2 {[%clk 0:00:03.6]} 52. Qh4+
{[%clk 0:00:06]} 52... Kf7 {[%clk 0:00:03.7]} 53. Qf4+ {[%clk 0:00:06.1]} 53...
Kg7 {[%clk 0:00:04.1]} 54. Qe5+ {[%clk 0:00:06.2]} 54... Kh7 {[%clk 0:00:04.2]}
55. Qe7+ {[%clk 0:00:06.1]} 55... Kh6 {[%clk 0:00:04.7]} 56. Qh4+ {[%clk
0:00:06.8]} 56... Kg7 {[%clk 0:00:05.1]} 57. Qd4+ {[%clk 0:00:07.3]} 57... Kh6
{[%clk 0:00:05]} 58. Qe3+ {[%clk 0:00:07.8]} 58... Kh7 {[%clk 0:00:04.8]} 59.
Qe7+ {[%clk 0:00:08.1]} 59... Kh6 {[%clk 0:00:05.2]} 60. Qf8+ {[%clk 0:00:08.4]}
60... Kh7 {[%clk 0:00:05.5]} 61. Qf7+ {[%clk 0:00:08.8]} 61... Kh6 {[%clk
0:00:06]} 62. Qf4+ {[%clk 0:00:09.5]} 62... Kg7 {[%clk 0:00:06]} 63. Qe5+ {[%clk
0:00:06.4]} 63... Kh7 {[%clk 0:00:05.1]} 64. Qe7+ {[%clk 0:00:06.8]} 1/2-1/2

[Event "Late-Titled-Tuesday-Blitz-January-16-2024"]
[Site "Chess.com"]
[Date "2024.01.16"]
[Round "2"]
[White "Fh2411"]
[Black "rasmussvane"]
[Result "0-1"]
[WhiteElo "2594"]
[BlackElo "2981"]
[TimeControl "180+1"]
[EndTime "14:19:05 PST"]
[Termination "rasmussvane won on time"]

1. d4 {[%clk 0:02:55.3]} 1... d5 {[%clk 0:02:55.5]} 2. Nf3 {[%clk 0:02:52.2]}
2... e6 {[%clk 0:02:54.6]} 3. c4 {[%clk 0:02:46.3]} 3... a6 {[%clk 0:02:53.5]}
4. Nbd2 {[%clk 0:02:33.8]} 4... dxc4 {[%clk 0:02:44.9]} 5. Nxc4 {[%clk
0:02:33.3]} 5... b5 {[%clk 0:02:43.7]} 6. Nce5 {[%clk 0:02:30.1]} 6... Bb7
{[%clk 0:02:43.9]} 7. Qc2 {[%clk 0:01:38.4]} 7... Nf6 {[%clk 0:02:32.8]} 8. e3
{[%clk 0:01:38.3]} 8... Bd6 {[%clk 0:02:03.4]} 9. Bd2 {[%clk 0:01:33.4]} 9...
Qe7 {[%clk 0:01:55.3]} 10. Rc1 {[%clk 0:01:24.2]} 10... O-O {[%clk 0:01:55.4]}
11. Bd3 {[%clk 0:01:23.7]} 11... h6 {[%clk 0:01:40.9]} 12. O-O {[%clk
0:01:20.1]} 12... Rc8 {[%clk 0:01:40.6]} 13. a4 {[%clk 0:00:44]} 13... b4 {[%clk
0:01:05.7]} 14. Nc4 {[%clk 0:00:41.3]} 14... Nbd7 {[%clk 0:00:50.2]} 15. a5
{[%clk 0:00:34]} 15... c5 {[%clk 0:00:39.4]} 16. Nxd6 {[%clk 0:00:29.4]} 16...
Qxd6 {[%clk 0:00:40.3]} 17. Qd1 {[%clk 0:00:28.1]} 17... e5 {[%clk 0:00:31.2]}
18. Bf5 {[%clk 0:00:25.4]} 18... cxd4 {[%clk 0:00:28.4]} 19. exd4 {[%clk
0:00:25]} 19... exd4 {[%clk 0:00:23.8]} 20. Qb3 {[%clk 0:00:19.6]} 20... Rxc1
{[%clk 0:00:14.1]} 21. Rxc1 {[%clk 0:00:19.4]} 21... Rb8 {[%clk 0:00:12.3]} 22.
Qd3 {[%clk 0:00:16.3]} 22... Bxf3 {[%clk 0:00:09.8]} 23. Qxf3 {[%clk 0:00:15.9]}
23... Ne5 {[%clk 0:00:09.9]} 24. Qg3 {[%clk 0:00:15.3]} 24... Nh5 {[%clk
0:00:07.1]} 25. Qh3 {[%clk 0:00:13.8]} 25... Nf6 {[%clk 0:00:06.7]} 26. Bf4
{[%clk 0:00:13.7]} 26... Qd5 {[%clk 0:00:05.9]} 27. Bd3 {[%clk 0:00:04.4]} 27...
Ra8 {[%clk 0:00:04.5]} 28. Rd1 {[%clk 0:00:02.9]} 28... Nxd3 {[%clk 0:00:04.6]}
29. Qxd3 {[%clk 0:00:03.8]} 29... Qxa5 {[%clk 0:00:04.4]} 30. Qxd4 {[%clk
0:00:04.3]} 30... Qb5 {[%clk 0:00:04.5]} 31. Bxh6 {[%clk 0:00:04.6]} 31... Qh5
{[%clk 0:00:03.5]} 32. Be3 {[%clk 0:00:04.7]} 32... a5 {[%clk 0:00:03.6]} 33. h3
{[%clk 0:00:05.1]} 33... Re8 {[%clk 0:00:03.5]} 34. Rc1 {[%clk 0:00:05.3]} 34...
Qf5 {[%clk 0:00:02.7]} 35. Qc5 {[%clk 0:00:04.5]} 35... Re5 {[%clk 0:00:01.6]}
36. Qc8+ {[%clk 0:00:03.9]} 36... Qxc8 {[%clk 0:00:02.2]} 37. Rxc8+ {[%clk
0:00:03.8]} 37... Kh7 {[%clk 0:00:03.1]} 38. Ra8 {[%clk 0:00:04.3]} 38... Rd5
{[%clk 0:00:03.6]} 39. Kh2 {[%clk 0:00:04.2]} 39... Ne4 {[%clk 0:00:03.4]} 40.
Bb6 {[%clk 0:00:03.6]} 40... Rd2 {[%clk 0:00:03.3]} 41. Rxa5 {[%clk 0:00:03.1]}
41... Rxb2 {[%clk 0:00:03.3]} 42. f3 {[%clk 0:00:03]} 42... Nd2 {[%clk
0:00:03.1]} 43. Kg3 {[%clk 0:00:03]} 43... Nf1+ {[%clk 0:00:03.4]} 44. Kf4
{[%clk 0:00:01.5]} 44... Rxg2 {[%clk 0:00:03.9]} 45. Rb5 {[%clk 0:00:02]} 45...
Rb2 {[%clk 0:00:04.1]} 46. Bd4 {[%clk 0:00:02.6]} 46... Rb1 {[%clk 0:00:04.4]}
47. Rb7 {[%clk 0:00:02.7]} 47... Kg6 {[%clk 0:00:04.7]} 48. Rb6+ {[%clk
0:00:02.2]} 48... f6 {[%clk 0:00:05.2]} 49. Rb8 {[%clk 0:00:02.4]} 49... Rb3
{[%clk 0:00:05.4]} 50. Bc5 {[%clk 0:00:02.3]} 50... Nd2 {[%clk 0:00:05.3]} 51.
Rxb4 {[%clk 0:00:01.8]} 51... Rxf3+ {[%clk 0:00:05.4]} 52. Kg4 {[%clk
0:00:02.5]} 52... f5+ {[%clk 0:00:05]} 53. Kh4 {[%clk 0:00:02]} 53... Ne4 {[%clk
0:00:05.6]} 54. Rb6+ {[%clk 0:00:02.4]} 54... Kh7 {[%clk 0:00:05.9]} 55. Rb7
{[%clk 0:00:02.6]} 55... Kh6 {[%clk 0:00:06.1]} 56. Bf8 {[%clk 0:00:02.3]} 56...
Rg3 {[%clk 0:00:05.3]} 57. Rb6+ {[%clk 0:00:01.4]} 57... Kh7 {[%clk 0:00:04.9]}
58. Rb7 {[%clk 0:00:01.8]} 58... Kg8 {[%clk 0:00:04.8]} 59. Be7 {[%clk
0:00:01.8]} 59... Kh8 {[%clk 0:00:04]} 60. Bd8 {[%clk 0:00:01.5]} 60... Kh7
{[%clk 0:00:04.3]} 61. Be7 {[%clk 0:00:01.4]} 61... Rg6 {[%clk 0:00:03.1]} 0-1